bitfinex-derivatives/quotes_SOLF0:USTF0_20251025
["timestamp","ask_amount","ask_price","bid_price","bid_amount"]
[1761388543575,2.72,191.9,191.83,2.68]
[1761388551273,2.72,191.93,191.83,2.68]
[1761388559785,2.84,191.96,191.86,2.75]
[1761388560383,2.84,191.96,191.88,2.75]
[1761388565295,6.78749526,191.96,191.88,2.75]
[1761388565495,2.84,191.96,191.88,2.75]
[1761388565897,2.84,191.95,191.88,2.75]
[1761388575702,3.92401965,191.97,191.88,2.75]
[1761388575905,3.92436388,191.97,191.88,2.75]
[1761388576104,2.84,191.98,191.88,2.75]
[1761388576304,2.84,191.98,191.88,4.6897]
[1761388576504,6.7637071,191.98,191.89,2.75]
[1761388576702,2.84,191.98,191.89,2.75]
[1761388577097,2.84,191.97,191.89,2.75]
[1761388577299,2.84,191.97,191.89,64.75]
[1761388577496,2.84,191.97,191.9,2.75]
[1761388579305,2.84,192.0,191.9,2.75]
[1761388579510,6.76167255,192.0,191.91,2.75]
[1761388579905,2.84,192.0,191.91,2.75]
[1761388580811,2.84,192.0,191.92,2.75]
[1761388581008,2.84,192.0,191.94,2.75]
[1761388593513,2.84,192.0,191.94,7.4382]
[1761388593719,2.84,192.0,191.95,2.75]
[1761388595423,2.84,192.0,191.95,63.1]
[1761388595723,2.84,192.0,191.95,65.85]
[1761388596122,2.84,192.0,191.96,2.75]
[1761388621841,2.71,192.02,191.98,2.75]
[1761388622140,2.71,192.0,191.98,63.08]
[1761388625247,2.71,192.03,191.98,63.08]
[1761388625442,2.71,192.01,191.98,63.08]
[1761388625746,4.51506705,192.04,191.98,63.08]
[1761388625747,2.71,191.99,191.98,63.08]
[1761388632148,2.71,191.99,191.98,65.82]
[1761388633148,2.77,192.02,191.98,65.82]
[1761388633350,6.7011437,192.01,191.98,65.82]
[1761388633549,3.9311437,192.0,191.98,65.82]
[1761388633754,3.9311437,191.99,191.98,65.82]
[1761388634045,6.7011437,191.99,191.98,63.08]
[1761388634253,2.77,191.99,191.98,63.08]
[1761388634952,2.77,191.99,191.91,4.6891]
[1761388635250,2.77,191.97,191.93,2.74]
[1761388652966,2.77,192.01,191.93,2.74]
[1761388653170,2.77,191.99,191.93,2.74]
[1761388659784,2.89,192.02,191.93,2.74]
[1761388659987,3.92323111,192.01,191.93,2.74]
[1761388660179,3.92323111,192.0,191.93,2.74]
[1761388660486,2.89,192.02,191.93,2.74]
[1761388660678,2.89,192.0,191.93,2.74]
[1761388662583,2.89,192.0,191.94,63.06]
[1761388662778,2.89,191.98,191.94,65.69]
[1761388663175,2.89,191.98,191.95,2.63]
[1761388663981,2.89,192.03,191.95,2.63]
[1761388664180,2.89,192.01,191.95,2.63]
[1761388664384,2.89,191.99,191.95,2.63]
[1761388665287,2.89,191.99,191.95,63.06]
[1761388665788,2.89,191.99,191.95,65.69]
[1761388672097,2.89,191.99,191.96,2.63]
[1761388674599,2.89,192.03,191.96,2.63]
[1761388674801,3.90838148,192.02,191.96,2.63]
[1761388675096,2.89,192.0,191.96,2.63]
[1761388679403,2.7,192.06,191.96,2.63]
[1761388679605,2.7,192.05,191.96,2.63]
[1761388679804,2.7,192.05,191.97,40.83]
[1761388680596,2.7,192.05,191.98,2.75]
[1761388682402,2.7,192.05,191.97,63.04]
[1761388682904,2.7,192.05,191.97,65.79]
[1761388683506,2.7,192.05,191.98,2.75]
[1761388684402,2.7,192.05,191.97,63.04]
[1761388684606,2.7,192.05,191.95,65.79]
[1761388685011,2.7,192.05,191.95,63.04]
[1761388685211,2.7,192.05,191.96,2.75]
[1761388685801,2.7,192.04,191.96,2.75]
[1761388686711,2.7,192.03,191.96,2.75]
[1761388695213,90.62848529,192.07,191.98,2.75]
[1761388695912,90.62848529,192.07,191.99,2.75]
[1761388696112,87.82848529,192.07,192.01,2.75]
[1761388696412,87.82848529,192.07,192.03,2.75]
[1761388696919,2.8,192.11,192.03,2.75]
[1761388697618,8.58328013,192.12,192.03,2.75]
[1761388697619,2.8,192.12,192.03,2.75]
[1761388698218,2.8,192.11,192.03,2.75]
[1761388698521,1.52774163,192.13,192.03,2.75]
[1761388698522,2.8,192.1,192.03,2.75]
[1761388698916,2.8,192.09,192.03,2.75]
[1761388699723,11.17452022,192.14,192.07,2.75]
[1761388699923,6.66396823,192.13,192.1,2.75]
[1761388700118,2.8,192.13,192.1,2.75]
[1761388701417,2.8,192.14,192.1,2.75]
[1761388702319,3.85837247,192.15,192.12,1.52774163]
[1761388702511,3.85837247,192.17,192.13,2.75]
[1761388702713,2.8,192.18,192.13,2.75]
[1761388702922,2.8,192.18,192.1,2.75]
[1761388706612,2.8,192.22,192.13,2.75]
[1761388706816,0.90579003,192.24,192.13,2.75]
[1761388706817,2.8,192.21,192.13,2.75]
[1761388707023,2.8,192.21,192.12,1.52774163]
[1761388707618,2.8,192.21,192.12,4.27774163]
[1761388709023,2.8,192.21,192.13,2.75]
[1761388712323,1.52774163,192.19,192.04,2.75]
[1761388712530,2.8,192.11,192.04,2.75]
[1761388713022,2.8,192.11,192.04,4.27774163]
[1761388713217,2.8,192.11,192.05,2.75]
[1761388714020,2.8,192.11,192.02,2.75]
[1761388715026,1.52774163,192.08,192.02,2.75]
[1761388715219,2.8,192.07,192.02,2.75]
[1761388728731,5.0160857,192.1,192.02,2.75]
[1761388728931,2.63,192.09,192.02,2.75]
[1761388732640,2.63,192.09,192.0,2.65]
[1761388739843,2.63,192.09,192.01,2.75]
[1761388750961,2.63,192.09,192.01,4.6865]
[1761388751260,2.63,192.09,192.02,2.75]
[1761388757371,3.99871361,192.08,192.02,2.75]
[1761388757672,2.63,192.09,192.02,2.75]
[1761388757863,3.99871613,192.08,192.03,2.75]
[1761388758064,2.63,192.09,192.03,2.75]
[1761388758264,2.7,192.07,192.03,2.75]
[1761388767283,2.7,192.05,191.98,2.75]
[1761388767578,2.7,192.03,191.98,2.75]
[1761388780777,2.7,192.03,191.96,4.6877]
[1761388780982,2.7,192.03,191.96,70.4177]
[1761388781483,2.7,192.03,191.97,2.73]
[1761388785388,2.7,192.03,191.97,65.73]
[1761388786596,2.66,192.01,191.97,2.73]
[1761388786794,1.52824471,192.0,191.97,2.73]
[1761388787295,2.66,191.99,191.97,2.73]
[1761388795593,4.01437392,192.04,191.97,2.73]
[1761388795798,2.66,192.02,191.97,2.73]
[1761388802613,2.64,192.01,191.95,63.0]
[1761388802811,2.64,192.01,191.96,63.0]
[1761388803013,2.64,192.01,191.97,2.75]
[1761388803307,2.64,192.01,191.96,63.0]
[1761388803503,22.98,192.14,191.88,2.75]
[1761388803504,1.52824471,191.98,191.88,2.75]
[1761388803699,2.64,191.97,191.88,2.75]
[1761388803907,2.64,191.97,191.89,63.0]
[1761388804106,2.64,191.94,191.89,63.0]
[1761388804307,2.64,191.94,191.9,2.75]
[1761388808012,2.64,191.94,191.87,4.6901]
[1761388808215,2.64,191.94,191.88,63.0]
[1761388810019,2.64,191.94,191.88,65.76]
[1761388816112,2.64,191.94,191.88,63.0]
[1761388820833,2.64,191.94,191.88,65.76]
[1761388825244,2.64,191.94,191.89,2.76]
[1761388825947,2.64,191.94,191.9,4.28824471]
[1761388826847,2.64,191.94,191.9,1.52824471]
[1761388827341,2.64,191.94,191.88,63.0]
[1761388827535,2.64,191.94,191.88,67.28824471]
[1761388830239,4.0603959,191.94,191.88,64.52824471]
[1761388830434,2.89,191.93,191.88,67.28824471]
[1761388831146,2.89,191.93,191.88,64.52824471]
[1761388831346,2.89,191.93,191.89,2.76]
[1761388836247,2.89,191.96,191.89,2.76]
[1761388836449,2.89,191.94,191.89,2.76]
[1761388838050,2.89,191.94,191.91,1.52824471]
[1761388840651,2.89,191.94,191.91,4.27824471]
[1761388842954,2.82,191.93,191.91,4.27824471]
[1761388844255,2.82,191.93,191.91,1.52824471]
[1761388846457,2.82,191.93,191.89,2.75]
[1761388846756,2.82,191.93,191.9,2.75]
[1761388848358,4.06114044,191.92,191.9,2.75]
[1761388848562,2.82,191.92,191.9,2.75]
[1761388857464,4.06557026,191.91,191.9,2.75]
[1761388860068,2.63,191.95,191.9,2.75]
[1761388860361,2.63,191.93,191.9,2.75]
[1761388860562,6.68497907,191.92,191.89,2.68]
[1761388860767,4.05497907,191.91,191.89,2.68]
[1761388861066,2.63,191.92,191.89,2.68]
[1761388861266,4.05517468,191.91,191.89,2.68]
[1761388861467,2.63,191.92,191.89,2.68]
[1761388861766,4.05442091,191.91,191.89,2.68]
[1761388861969,2.63,191.94,191.89,2.68]
[1761388862160,6.68356032,191.93,191.89,2.68]
[1761388862462,4.05356032,191.92,191.89,2.68]
[1761388862670,4.05356032,191.91,191.89,2.68]
[1761388862965,2.63,191.94,191.89,2.68]
[1761388863167,6.68370397,191.93,191.89,2.68]
[1761388863367,4.05370397,191.92,191.89,2.68]
[1761388863669,2.63,191.93,191.89,2.68]
[1761388863860,4.05370407,191.92,191.89,2.68]
[1761388864060,2.63,191.93,191.89,2.68]
[1761388864261,4.05311109,191.92,191.89,2.68]
[1761388864461,2.63,191.93,191.89,2.68]
[1761388864661,4.05244602,191.92,191.89,2.68]
[1761388864861,2.63,191.93,191.89,2.68]
[1761388865062,4.05241705,191.92,191.89,2.68]
[1761388865361,2.63,191.93,191.89,2.68]
[1761388865559,6.6824538,191.92,191.89,2.68]
[1761388865769,2.63,191.92,191.89,2.68]
[1761388865968,4.05244027,191.91,191.89,2.68]
[1761388866170,2.63,191.92,191.89,2.68]
[1761388866371,4.05247535,191.91,191.89,2.68]
[1761388866669,2.63,191.92,191.89,2.68]
[1761388866870,4.0518584,191.91,191.89,2.68]
[1761388867074,2.63,191.92,191.89,2.68]
[1761388867270,4.05172411,191.91,191.89,2.68]
[1761388867464,2.63,191.92,191.89,2.68]
[1761388870373,2.83,191.93,191.89,2.68]
[1761388870573,4.04517134,191.92,191.89,2.68]
[1761388870869,2.83,191.93,191.89,2.68]
[1761388871070,4.04517134,191.92,191.89,2.68]
[1761388871270,2.83,191.93,191.89,2.68]
[1761388871471,4.04526134,191.92,191.89,2.68]
[1761388871671,7.66530888,191.97,191.9,2.66]
[1761388871979,4.04612069,191.96,191.93,2.38848828]
[1761388872175,93.34015153,191.99,191.95,2.66]
[1761388872478,4.04399738,191.98,191.95,2.66]
[1761388872778,4.04399738,191.97,191.95,2.66]
[1761388873078,96.17015153,191.99,191.95,2.66]
[1761388873277,4.04245625,191.98,191.95,2.66]
[1761388873478,4.04245625,191.97,191.95,2.66]
[1761388873667,96.17015153,191.99,191.95,2.66]
[1761388873870,4.0433145,191.98,191.95,2.66]
[1761388874172,96.17015153,191.99,191.95,2.66]
[1761388874566,4.04081548,191.98,191.95,2.66]
[1761388874773,96.17015153,191.99,191.95,2.66]
[1761388875580,2.83,191.99,191.95,2.66]
[1761388875780,2.83,192.02,191.95,2.66]
[1761388876076,4.03962538,192.01,191.95,2.66]
[1761388876281,4.03962538,192.0,191.95,2.66]
[1761388876486,2.83,192.02,191.95,2.66]
[1761388876670,4.0397988,192.01,191.95,2.66]
[1761388876874,4.0397988,192.0,191.95,2.66]
[1761388877075,2.83,192.02,191.95,2.66]
[1761388877277,4.03842975,192.01,191.95,2.66]
[1761388877581,2.83,192.02,191.95,2.66]
[1761388877782,4.03840124,192.01,191.95,2.66]
[1761388877983,2.83,192.02,191.95,2.66]
[1761388878183,4.03873975,192.01,191.95,2.66]
[1761388878377,2.83,192.02,191.95,2.66]
[1761388878581,2.83,192.05,191.96,2.66]
[1761388878778,4.03804729,192.04,191.97,2.66]
[1761388878981,4.03804729,192.03,191.97,2.66]
[1761388879278,4.03804729,192.02,191.97,2.66]
[1761388879481,4.03804729,192.04,191.97,2.66]
[1761388879680,4.03804729,192.03,191.97,2.66]
[1761388879880,4.03804729,192.02,191.97,2.66]
[1761388880082,4.03804729,192.04,191.97,2.66]
[1761388880282,4.03804729,192.03,191.97,2.66]
[1761388880588,4.03804729,192.04,191.97,2.66]
[1761388880885,2.83,192.05,191.97,2.66]
[1761388881080,4.03529436,192.04,191.97,2.66]
[1761388882088,2.83,192.08,191.98,2.66]
[1761388882287,6.86234963,192.08,192.0,2.66]
[1761388882786,2.83,192.08,192.01,4.6865]
[1761388883089,2.83,192.08,192.02,2.66]
[1761388884690,95.4573279,192.09,192.02,2.66]
[1761388886191,98.2873279,192.09,192.02,2.66]
[1761388886388,2.83,192.13,192.03,2.66]
[1761388887086,2.83,192.13,192.02,7.07468828]
[1761388887087,2.83,192.13,192.05,2.66]
[1761388892794,2.83,192.2,192.07,2.66]
[1761388893296,4.683,192.17,192.09,2.66]
[1761388893493,2.83,192.16,192.09,2.66]
[1761388899303,4.6833,192.16,192.09,2.66]
[1761388899605,2.64,192.15,192.06,2.75]
[1761388900402,7.3239,192.13,192.06,2.75]
[1761388903406,7.3239,192.13,192.07,2.75]
[1761388903606,2.64,192.13,192.07,2.75]
[1761388906604,2.64,192.17,192.07,2.75]
[1761388908414,2.64,192.17,192.08,65.67]
[1761388908906,2.64,192.15,192.08,65.67]
[1761388909313,2.64,192.15,192.08,2.75]
[1761388910013,14.20461004,192.24,192.04,2.75]
[1761388910014,2.64,192.09,192.04,2.75]
[1761388917817,2.64,192.09,192.01,2.75]
[1761388919724,2.62,192.06,192.0,62.92]
[1761388919915,1.52568519,192.04,192.0,62.92]
[1761388920118,2.62,192.03,192.0,62.92]
[1761388921714,2.62,192.03,191.99,2.75]
[1761388927632,2.62,192.06,191.99,2.75]
[1761388928037,2.65,192.1,192.0,2.75]
[1761388928638,2.65,192.1,192.02,2.75]
[1761388929638,2.65,192.1,192.01,2.75]
[1761388929832,2.65,192.09,192.01,2.75]
[1761388938540,2.65,192.06,191.98,2.75]
[1761388938741,2.65,192.06,191.99,65.67]
[1761388939141,2.65,192.06,192.0,2.75]
[1761388942041,2.65,192.09,192.0,2.75]
[1761388943244,2.65,192.09,192.01,2.75]
[1761388945042,2.65,192.09,192.02,2.75]
[1761388946750,2.65,192.09,192.03,2.75]
[1761388948451,2.65,192.09,192.04,62.92]
[1761388950750,2.65,192.09,192.04,65.67]
[1761388951451,2.65,192.09,192.04,2.75]
[1761388952649,2.65,192.09,192.02,62.92]
[1761388953249,2.65,192.08,192.02,62.92]
[1761388953444,2.65,192.08,192.02,65.67]
[1761388953645,2.65,192.08,191.99,2.75]
[1761388953957,2.65,192.07,192.0,65.67]
[1761388955251,4.17568519,192.07,192.0,65.67]
[1761388955457,2.65,192.06,192.0,65.67]
[1761388955957,2.65,192.06,192.01,2.75]
[1761388956950,7.3359,192.05,192.01,2.75]
[1761388957653,4.6859,192.05,192.01,2.75]
[1761388957960,2.65,192.04,192.01,2.75]
[1761388959160,4.6859,192.05,192.01,2.75]
[1761388959666,7.5359,192.05,192.01,2.75]
[1761388961158,2.85,192.04,192.01,2.75]
[1761388964056,2.85,192.04,192.0,62.92]
[1761388964262,2.85,192.04,192.01,2.75]
[1761388966964,3.98363682,192.05,192.01,2.75]
[1761388967167,2.85,192.07,192.01,2.75]
[1761388967469,2.85,192.05,192.01,2.75]
[1761388968158,1.52568519,192.08,192.01,2.75]
[1761388968464,3.98399025,192.07,192.01,2.75]
[1761388968664,2.85,192.08,192.01,2.75]
[1761388968861,6.83449549,192.07,192.01,2.75]
[1761388969060,2.85,192.07,192.01,2.75]
[1761388971767,2.85,192.11,192.01,2.75]
[1761388971968,2.85,192.09,192.01,2.75]
[1761388972172,3.9853974,192.08,192.01,2.75]
[1761388972471,2.85,192.09,192.01,2.75]
[1761388972665,3.98543569,192.08,192.01,2.75]
[1761388972865,2.85,192.09,192.01,2.75]
[1761388973069,3.98526579,192.08,192.01,2.75]
[1761388973369,2.85,192.09,192.01,2.75]
[1761388973570,3.98524226,192.08,192.01,2.75]
[1761388973779,2.85,192.09,192.01,2.75]
[1761388973972,6.83524226,192.08,192.01,2.75]
[1761388974167,2.85,192.08,192.01,2.75]
[1761388976772,2.85,192.08,192.02,62.92]
[1761388977976,2.85,192.08,192.02,65.67]
[1761388979472,2.85,192.08,192.02,62.92]
[1761388979675,2.85,192.08,192.03,2.75]
[1761388986776,2.85,192.12,192.03,2.75]
[1761388986984,2.85,192.1,192.03,2.75]
[1761388987271,3.98794704,192.09,192.03,2.75]
[1761388987473,2.85,192.1,192.03,2.75]
[1761388988078,104.96023287,192.13,192.04,2.63]
[1761388988377,6.62812535,192.12,192.04,2.63]
[1761388988573,3.98812535,192.11,192.04,2.63]
[1761388988785,2.64,192.12,192.04,2.63]
[1761388990284,4.390297,192.11,192.04,2.63]
[1761388990476,4.390297,192.1,192.04,2.63]
[1761388990682,4.390297,192.09,192.05,2.63]
[1761388990980,4.390297,192.08,192.05,2.63]
[1761388991278,2.64,192.12,192.05,2.63]
[1761388991480,4.38937629,192.11,192.05,2.63]
[1761388991780,4.38937629,192.1,192.06,2.63]
[1761388991981,4.38937629,192.09,192.06,2.63]
[1761388992183,2.64,192.12,192.06,2.63]
[1761388992480,4.38921935,192.11,192.06,2.63]
[1761388992685,4.38921935,192.1,192.06,2.63]
[1761388992983,4.38921935,192.09,192.06,2.63]
[1761388993182,2.64,192.12,192.06,2.63]
[1761388993374,7.02849851,192.11,192.06,2.63]
[1761388993575,4.38849851,192.1,192.06,2.63]
[1761388993775,2.64,192.11,192.06,2.63]
[1761388993980,4.38805486,192.1,192.06,2.63]
[1761388994278,2.64,192.13,192.06,2.63]
[1761388994483,4.3871784,192.12,192.06,2.63]
[1761388994783,7.0271784,192.11,192.06,2.63]
[1761388994983,4.3871784,192.1,192.08,2.63]
[1761388995279,2.64,192.14,192.1,2.63]
[1761388995484,4.34611081,192.13,192.1,2.63]
[1761388995684,4.34611081,192.12,192.1,2.63]
[1761388995982,4.34611081,192.11,192.1,2.63]
[1761388996183,2.64,192.14,192.1,2.63]
[1761388996382,4.31024198,192.13,192.1,2.63]
[1761388996583,2.64,192.11,192.09,65.53]
[1761388996771,2.64,192.12,192.09,65.53]
[1761388996972,2.64,192.12,192.09,62.9]
[1761388997174,2.64,192.12,192.1,2.63]
[1761388997386,2.64,192.15,192.1,2.63]
[1761388997576,6.9487024,192.14,192.1,2.63]
[1761388997777,4.3087024,192.13,192.1,2.63]
[1761388997977,4.3087024,192.12,192.1,2.63]
[1761388998183,2.64,192.14,192.1,2.63]
[1761388998388,4.28216424,192.13,192.1,2.63]
[1761388998582,4.28216424,192.12,192.1,2.63]
[1761388998783,2.64,192.15,192.1,2.63]
[1761388999083,4.2813309,192.14,192.1,2.63]
[1761388999281,2.64,192.17,192.1,2.63]
[1761388999482,6.90713728,192.16,192.1,2.63]
[1761388999784,6.90713728,192.15,192.1,2.63]
[1761388999984,4.26713728,192.14,192.1,2.63]
[1761389000183,2.64,192.15,192.1,2.63]
[1761389000384,4.2670289,192.14,192.1,2.63]
[1761389000683,2.64,192.15,192.1,2.63]
[1761389000882,4.26623701,192.14,192.1,2.63]
[1761389001082,2.64,192.15,192.1,2.63]
[1761389001283,4.2661015,192.14,192.1,2.63]
[1761389001487,2.64,192.15,192.1,2.63]
[1761389010788,2.64,192.15,192.07,2.63]
[1761389010993,2.64,192.13,192.08,62.88]
[1761389011195,2.64,192.13,192.09,62.88]
[1761389015900,2.64,192.13,192.09,65.51]
[1761389017102,2.64,192.13,192.1,2.63]
[1761389017591,2.64,192.17,192.1,2.63]
[1761389017792,6.88993909,192.16,192.1,2.63]
[1761389017988,4.24993909,192.15,192.1,2.63]
[1761389018188,2.73,192.15,192.1,2.63]
[1761389019203,4.2505521,192.14,192.1,2.63]
[1761389019400,2.73,192.14,192.1,2.63]
[1761389023305,2.73,192.14,192.11,65.63]
[1761389024808,2.73,192.14,192.12,62.88]
[1761389025114,2.73,192.14,192.09,2.75]
[1761389025412,2.73,192.14,192.12,62.88]
[1761389027604,2.73,192.14,192.08,7.4348]
[1761389027811,2.73,192.14,192.12,62.88]
[1761389029112,2.73,192.14,192.11,2.75]
[1761389035113,2.73,192.14,192.12,51.96]
[1761389037115,2.73,192.14,192.11,65.63]
[1761389038319,2.73,192.14,192.11,2.75]
[1761389038517,2.73,192.14,192.11,54.71]
[1761389038820,2.73,192.14,192.11,65.63]
[1761389040524,2.73,192.14,192.12,2.64]
[1761389041410,2.73,192.14,192.11,62.88]
[1761389042022,2.73,192.14,192.11,65.52]
[1761389043518,2.73,192.14,192.11,2.64]
[1761389043718,2.73,192.14,192.11,65.52]
[1761389044010,2.73,192.14,192.11,62.88]
[1761389044417,2.73,192.14,192.08,4.16548896]
[1761389044418,2.73,192.14,192.1,62.88]
[1761389044812,2.73,192.14,192.1,65.52]
[1761389045511,1.52548896,192.2,192.1,65.52]
[1761389045512,2.64,192.12,192.1,62.88]
[1761389047516,2.64,192.12,192.09,62.88]
[1761389049218,2.64,192.12,192.09,65.63]
[1761389050222,2.64,192.12,192.09,62.88]
[1761389051523,2.64,192.12,192.05,4.27548896]
[1761389051714,2.64,192.12,192.06,62.88]
[1761389051914,2.64,192.12,192.06,65.63]
[1761389054425,2.64,192.12,192.06,62.88]
[1761389054722,2.64,192.12,192.07,2.75]
[1761389055826,2.64,192.12,192.07,65.63]
[1761389056220,2.64,192.12,192.08,2.75]
[1761389056721,2.66,192.17,192.08,2.75]
[1761389056922,2.66,192.15,192.08,2.75]
[1761389057121,6.68268201,192.14,192.08,2.75]
[1761389057321,6.68268201,192.13,192.08,2.75]
[1761389057527,2.66,192.13,192.08,2.75]
[1761389067229,2.66,192.13,192.09,50.61]
[1761389067429,2.66,192.13,192.09,2.75]
[1761389067620,2.66,192.13,192.09,65.63]
[1761389068634,2.66,192.13,192.09,62.88]
[1761389068929,2.66,192.13,192.07,2.75]
[1761389069128,2.66,192.11,192.07,65.63]
[1761389072931,2.66,192.11,192.05,2.75]
[1761389073136,2.66,192.11,192.06,65.63]
[1761389077133,2.66,192.11,192.06,62.88]
[1761389077341,2.66,192.09,192.06,62.88]
[1761389081144,2.66,192.09,192.06,65.63]
[1761389082638,2.66,192.09,192.06,62.88]
[1761389084636,2.66,192.09,192.06,65.63]
[1761389085745,2.66,192.09,192.06,2.75]
[1761389089952,2.66,192.09,192.04,65.63]
[1761389092251,2.66,192.09,192.01,2.75]
[1761389092458,2.89,192.06,191.98,2.75]
[1761389092958,2.89,192.04,191.98,2.75]
[1761389093252,2.89,192.02,191.98,2.75]
[1761389093643,2.89,192.02,191.95,2.75]
[1761389095164,2.89,192.02,191.88,2.75]
[1761389095365,2.89,192.02,191.9,2.75]
[1761389096964,2.89,192.01,191.9,2.75]
[1761389102663,2.65,191.98,191.9,2.75]
[1761389102964,2.65,191.98,191.84,2.74]
[1761389104065,666.65740303,192.47,191.84,2.74]
[1761389104066,2.65,192.03,191.87,2.74]
[1761389104963,2.65,192.03,191.9,2.74]
[1761389108279,2.65,192.03,191.95,2.68]
[1761389115177,2.72,192.08,191.95,2.68]
[1761389117587,2.72,192.08,191.96,2.68]
[1761389121682,2.72,192.08,191.96,4.6878]
[1761389121888,2.72,192.08,191.97,2.68]
[1761389122990,2.72,192.08,191.98,2.68]
[1761389125587,2.72,192.05,191.98,2.68]
[1761389130904,2.72,192.08,191.98,2.68]
[1761389133815,2.72,192.08,191.99,2.68]
[1761389135906,2.72,192.08,192.0,2.68]
[1761389140109,4.6854,192.07,192.0,2.68]
[1761389140713,7.5254,192.07,192.0,2.68]
[1761389140918,2.84,192.06,192.0,2.68]
[1761389142711,4.6854,192.07,192.0,2.68]
[1761389143712,7.5248,192.09,192.01,2.76]
[1761389145013,7.5248,192.09,192.02,2.76]
[1761389149424,7.5248,192.09,192.03,2.76]
[1761389150820,9.05147509,192.09,192.03,2.76]
[1761389154323,9.05147509,192.09,192.03,4.6861]
[1761389154522,9.05147509,192.09,192.04,2.76]
[1761389155122,6.21147509,192.09,192.04,2.76]
[1761389155320,2.84,192.08,192.04,2.76]
[1761389156226,4.36667509,192.09,192.04,2.76]
[1761389157219,1.52667509,192.09,192.04,2.76]
[1761389157821,4.36667509,192.09,192.04,2.76]
[1761389158312,4.36667509,192.09,192.05,2.76]
[1761389159222,3.92360611,192.11,192.05,2.76]
[1761389159422,4.42667509,192.11,192.05,2.76]
[1761389159728,4.42667509,192.11,192.05,7.4455]
[1761389159927,4.42667509,192.11,192.06,2.66]
[1761389160218,4.42667509,192.14,192.06,2.66]
[1761389160423,3.92538049,192.13,192.07,2.66]
[1761389160824,4.42667509,192.14,192.07,2.66]
[1761389161334,8.35205558,192.14,192.07,2.66]
[1761389161522,2.9,192.14,192.09,2.66]
[1761389161827,2.9,192.11,192.09,2.66]
[1761389162023,2.9,192.11,192.05,2.66]
[1761389162224,1.52667509,192.06,191.99,2.66]
[1761389162413,4.42667509,192.06,191.99,2.66]
[1761389165024,2.9,192.02,191.99,2.66]